bitfinex-derivatives/quotes_BNBF0:USTF0_20250424
["timestamp","ask_amount","ask_price","bid_price","bid_amount"]
[1745508899791,0.27066911,601.47,599.62,0.627]
[1745508899991,0.27066911,601.46,599.62,0.627]
[1745508900187,0.27066911,601.45,599.62,0.627]
[1745508900394,0.28986232,601.52,599.62,0.627]
[1745508900589,0.2706717,601.51,599.63,0.602]
[1745508900788,0.2706717,601.5,599.63,0.602]
[1745508900990,0.2706717,601.49,599.63,0.602]
[1745508901193,0.2706717,601.48,599.63,0.602]
[1745508901394,0.2706717,601.47,599.63,0.602]
[1745508901587,0.2706717,601.46,599.64,0.66]
[1745508901789,1.27167545,601.38,599.64,0.66]
[1745508901991,0.2706717,601.37,599.64,0.66]
[1745508902190,0.2706717,601.36,599.64,0.66]
[1745508902394,0.2706717,601.35,599.64,0.66]
[1745508902690,0.2706717,601.34,599.64,0.66]
[1745508902895,0.2706717,601.37,599.64,0.66]
[1745508903097,0.27067311,601.36,599.64,0.66]
[1745508903296,0.27067311,601.35,599.64,0.66]
[1745508903596,0.27067311,601.34,599.64,0.66]
[1745508903801,0.27067311,601.37,599.64,0.66]
[1745508904098,0.27067311,601.36,599.64,0.66]
[1745508904294,0.27067311,601.35,599.64,0.66]
[1745508904600,0.27066114,601.34,599.64,0.66]
[1745508904795,0.27066114,601.33,599.64,0.66]
[1745508904991,0.27066114,601.32,599.64,0.66]
[1745508905196,0.27066114,601.31,599.64,0.66]
[1745508905395,0.27066114,601.3,599.64,0.66]
[1745508905599,0.27066114,601.29,599.64,0.66]
[1745508905791,0.27066114,601.28,599.64,0.66]
[1745508905991,0.27066114,601.27,599.64,0.66]
[1745508906197,1.27167545,601.43,599.64,0.66]
[1745508906198,0.27066114,601.26,599.64,0.66]
[1745508906394,0.27066114,601.25,599.64,0.66]
[1745508906595,0.27066114,601.24,599.64,0.66]
[1745508906800,0.27066114,601.23,599.64,0.66]
[1745508906998,0.27066114,601.22,599.64,0.66]
[1745508907198,1.27167545,601.33,599.64,0.66]
[1745508907399,0.27066114,601.21,599.64,0.66]
[1745508907597,0.27066114,601.2,599.64,0.66]
[1745508907802,0.27066114,601.19,599.64,0.66]
[1745508907997,0.28989612,601.2,599.64,0.66]
[1745508908196,0.27066114,601.19,599.64,0.66]
[1745508908904,0.28989612,601.2,599.64,0.66]
[1745508909204,0.27067507,601.19,599.64,0.66]
[1745508910302,0.27067507,601.18,599.64,0.66]
[1745508910502,0.27068519,601.17,599.64,0.66]
[1745508910697,0.27068519,601.16,599.64,0.66]
[1745508910900,0.27068519,601.15,599.64,0.66]
[1745508911099,0.2899251,601.16,599.64,0.66]
[1745508911301,0.27068519,601.15,599.64,0.66]
[1745508912204,0.27068519,601.14,599.64,0.66]
[1745508912403,0.27068519,601.15,599.64,0.66]
[1745508912703,0.27069966,601.14,599.64,0.66]
[1745508912896,0.27069966,601.15,599.64,0.66]
[1745508913101,0.27069966,601.14,599.64,0.66]
[1745508913404,0.27069966,601.13,599.64,0.66]
[1745508913603,0.27069966,601.15,599.64,0.66]
[1745508913805,0.27069966,601.14,599.64,0.66]
[1745508914004,0.27069966,601.21,599.64,0.66]
[1745508914203,0.28993356,601.13,599.64,0.66]
[1745508914404,0.27069966,601.12,599.64,0.66]
[1745508914800,0.27069966,601.2,599.64,0.66]
[1745508915000,0.27069966,601.11,599.64,0.66]
[1745508915303,0.27069966,601.1,599.64,0.66]
[1745508915507,0.27069966,601.2,599.64,0.66]
[1745508915800,0.27069966,601.19,599.64,0.66]
[1745508916005,0.27069966,601.18,599.65,0.804]
[1745508916206,0.27069966,601.17,599.65,0.804]
[1745508916408,0.27069966,601.16,599.65,0.804]
[1745508916600,0.27070615,601.15,599.65,0.804]
[1745508916800,0.27070615,601.18,599.65,0.804]
[1745508917000,0.27070615,601.17,599.65,0.804]
[1745508917201,0.27070615,601.18,599.65,0.804]
[1745508917505,0.27070615,601.17,599.65,0.804]
[1745508917805,0.27070615,601.16,599.65,0.804]
[1745508918002,0.27070615,601.18,599.65,0.804]
[1745508918200,0.27070615,601.15,599.65,0.804]
[1745508918502,0.27070615,601.14,599.65,0.804]
[1745508918700,0.28993476,601.19,599.65,0.804]
[1745508918701,0.27070615,601.18,599.65,0.804]
[1745508918907,0.27070615,601.17,599.65,0.804]
[1745508919105,0.27070615,601.18,599.65,0.804]
[1745508919305,0.27070615,601.17,599.65,0.804]
[1745508919505,0.28993476,601.19,599.65,0.804]
[1745508919707,0.27074532,601.18,599.65,0.804]
[1745508920007,0.27074532,601.17,599.65,0.804]
[1745508923007,0.56065955,601.16,599.65,0.804]
[1745508923309,0.27074532,601.15,599.65,0.804]
[1745508923708,1.27167545,601.51,599.65,0.804]
[1745508923709,0.27074532,601.5,599.65,0.804]
[1745508923905,0.27074532,601.49,599.65,0.804]
[1745508924106,0.27072046,601.48,599.65,0.804]
[1745508924306,0.27072046,601.47,599.65,0.804]
[1745508924609,0.27072046,601.46,599.65,0.804]
[1745508924806,0.27072046,601.45,599.65,0.804]
[1745508925006,0.27072046,601.44,599.65,0.804]
[1745508925211,0.27072046,601.43,599.65,0.804]
[1745508925412,0.27072046,601.42,599.65,0.804]
[1745508925608,0.27071016,601.41,599.65,0.804]
[1745508925809,0.27071016,601.4,599.65,0.804]
[1745508926207,0.27071016,601.39,599.65,0.804]
[1745508926412,0.27071016,601.38,599.65,0.804]
[1745508926607,0.27071016,601.37,599.65,0.804]
[1745508926913,0.27071016,601.36,599.65,0.804]
[1745508927115,0.27070831,601.35,599.65,0.804]
[1745508927307,0.27070831,601.34,599.65,0.804]
[1745508927509,0.27070831,601.33,599.65,0.804]
[1745508927712,0.27070831,601.32,599.65,0.804]
[1745508928010,0.27070831,601.31,599.65,0.804]
[1745508928210,0.27070831,601.3,599.65,0.804]
[1745508928409,0.27070831,601.29,599.65,0.804]
[1745508928714,0.27071698,601.28,599.65,0.804]
[1745508928920,0.27071698,601.27,599.65,0.804]
[1745508929118,0.27071698,601.26,599.65,1.45]
[1745508929319,0.27071698,601.25,599.65,1.45]
[1745508929520,0.27071698,601.24,599.65,1.45]
[1745508929719,0.27071698,601.23,599.65,1.45]
[1745508930020,1.27167545,601.19,599.65,1.45]
[1745508930320,0.27071698,601.18,599.65,1.45]
[1745508930621,0.27071698,601.17,599.65,1.45]
[1745508930920,0.27071698,601.16,599.65,1.45]
[1745508931219,1.27167545,601.19,599.65,1.45]
[1745508931220,0.27071698,601.15,599.65,1.45]
[1745508931419,0.27071698,601.14,599.65,1.45]
[1745508931722,0.27071698,601.13,599.65,1.45]
[1745508931920,0.27071698,601.12,599.65,1.45]
[1745508932221,0.27071698,601.11,599.65,1.45]
[1745508932415,0.27071698,601.1,599.65,1.45]
[1745508932618,0.27071698,601.12,599.65,1.45]
[1745508932816,1.27167545,601.1,599.65,1.45]
[1745508933122,0.27070621,601.09,599.65,1.45]
[1745508933823,0.27070621,601.09,599.65,0.804]
[1745508934121,0.27070621,601.09,599.64,0.66]
[1745508934719,0.27070669,601.08,599.64,0.66]
[1745508934922,0.27070669,601.15,599.64,0.66]
[1745508935122,0.28994564,601.08,599.64,0.66]
[1745508935325,0.27070669,601.07,599.64,0.66]
[1745508935524,0.27070669,601.07,599.37,0.28994564]
[1745508935724,0.27070669,601.07,599.38,0.92745051]
[1745508935926,0.27070669,601.07,599.39,0.92745051]
[1745508936224,0.27070873,601.06,599.4,0.92745144]
[1745508936520,0.27070873,601.05,599.41,0.92745144]
[1745508936725,0.27070873,601.04,599.42,0.92745144]
[1745508936922,0.27070873,601.03,599.43,0.92745144]
[1745508937123,0.27070873,601.02,599.44,0.92745144]
[1745508937324,0.27070873,601.01,599.45,0.92745144]
[1745508937620,0.27070873,601.07,599.46,0.30616515]
[1745508937820,0.27070873,601.06,599.47,0.30616515]
[1745508938023,0.27070873,601.05,599.48,0.30616515]
[1745508938226,0.27070873,601.05,599.42,0.30616515]
[1745508938429,0.27070873,601.05,599.43,0.92728577]
[1745508938627,0.27070873,601.05,599.44,0.92728577]
[1745508938829,0.27070873,601.05,599.45,0.92728577]
[1745508939031,0.27070873,601.05,599.46,0.92728577]
[1745508939224,0.27070873,601.05,599.47,0.92712303]
[1745508939425,0.27070873,601.05,599.48,0.92712303]
[1745508939624,0.27070873,601.05,599.49,0.30616515]
[1745508939827,0.27070873,601.05,599.41,0.28995167]
[1745508939828,0.27070873,601.05,599.42,0.30616515]
[1745508940024,0.27070873,601.05,599.43,0.30616515]
[1745508940329,0.27070873,601.05,599.44,0.30616515]
[1745508940522,0.28995167,601.06,599.41,0.28995167]
[1745508940724,0.2706035,601.05,599.42,0.30605814]
[1745508941224,0.2706035,601.04,599.43,0.30605814]
[1745508941429,0.2706035,601.04,599.42,0.30605814]
[1745508941730,0.2706035,601.04,599.43,0.30605814]
[1745508941930,0.2706035,601.04,599.44,0.30605814]
[1745508942125,0.27060457,601.03,599.45,0.30605914]
[1745508942329,0.27060457,601.02,599.46,0.30605914]
[1745508942530,0.27060457,601.04,599.42,0.30605914]
[1745508942730,0.27060457,601.03,599.43,0.30605914]
[1745508943031,0.27060457,601.02,599.44,0.30605914]
[1745508943231,0.27060457,601.01,599.45,0.30605914]
[1745508943424,0.27060457,601.0,599.46,0.30605914]
[1745508943623,0.28990699,601.05,599.41,0.28990699]
[1745508943829,0.27060215,601.04,599.42,0.30605666]
[1745508944027,0.28989974,601.04,599.43,0.30605666]
[1745508944227,0.27060215,601.03,599.44,0.30605666]
[1745508944428,0.27060215,601.03,599.45,0.30605666]
[1745508944625,0.27060215,601.03,599.42,0.30605666]
[1745508944830,0.27060215,601.03,599.46,0.30605666]
[1745508945032,0.27060215,601.03,599.47,0.30605666]
[1745508945227,0.27061262,601.02,599.41,0.28989974]
[1745508945527,0.27061262,601.01,599.42,0.30606874]
[1745508945733,0.27061262,601.0,599.42,0.30606874]
[1745508946033,0.27061262,600.99,599.42,0.30606874]
[1745508946233,0.27061262,601.03,599.42,0.30606874]
[1745508946634,0.28989974,601.04,599.41,0.28989974]
[1745508946929,0.2706129,601.03,599.42,0.30606762]
[1745508947132,0.28991423,601.03,599.41,0.28991423]
[1745508947334,0.2706129,601.02,599.42,0.30606762]
[1745508948137,0.28991423,601.03,599.41,0.28991423]
[1745508948329,0.27061083,601.02,599.42,0.30606557]
[1745508949632,0.27061083,601.02,599.41,0.28991423]
[1745508949633,0.28991423,601.03,599.41,0.28991423]
[1745508949930,0.27061548,601.02,599.42,0.30607027]
[1745508950136,0.28989129,601.02,599.41,0.28989129]
[1745508950335,0.27061548,601.01,599.42,0.30607027]
[1745508951237,0.27066958,601.0,599.41,0.28989129]
[1745508951431,0.27066958,601.01,599.41,0.28989129]
[1745508951633,0.27066958,601.0,599.41,0.28989129]
[1745508951834,0.27066958,601.01,599.41,0.28989129]
[1745508952035,0.27066958,601.0,599.42,0.30610704]
[1745508952335,0.27066958,600.99,599.42,0.30610704]
[1745508952632,0.27066958,600.98,599.42,0.30610704]
[1745508952839,0.27066958,601.01,599.42,0.30610704]
[1745508954140,0.28989129,601.02,599.41,0.28989129]
[1745508954441,0.2705571,601.01,599.42,0.30601081]
[1745508958943,0.2705571,601.92,599.11,0.30601081]
[1745508959146,0.28980559,601.04,599.41,0.28980559]
[1745508959442,0.2705571,601.03,599.42,0.30601081]
[1745508959644,0.2705571,601.74,599.2,0.30601081]
[1745508959843,0.2705571,601.73,599.21,0.30601081]
[1745508960043,0.2705571,601.73,599.19,1.05364295]
[1745508960044,0.2705571,601.72,599.22,0.30601081]
[1745508960245,0.2705571,601.71,599.23,0.30601081]
[1745508960445,0.2705571,601.7,599.24,0.30601081]
[1745508960646,0.2705571,601.69,599.25,0.30601081]
[1745508960947,0.2705571,601.68,599.26,0.30601081]
[1745508961144,0.2705571,601.67,599.27,0.30601081]
[1745508961347,0.28986473,601.68,599.24,0.28985387]
[1745508961641,0.27059513,601.67,599.25,0.30604944]
[1745508961847,0.27059513,601.66,599.26,0.30604944]
[1745508962039,0.27059513,601.65,599.27,0.30604944]
[1745508962243,0.27059513,601.64,599.28,0.30604944]
[1745508962442,1.27167545,601.5,599.25,0.30604944]
[1745508962643,0.27059513,601.49,599.26,0.30604944]
[1745508962848,1.27167545,601.5,599.27,0.30608223]
[1745508963048,0.27062752,601.49,599.28,0.30608223]
[1745508963252,0.27062752,601.49,599.25,0.30608223]
[1745508965053,0.28988284,601.48,599.25,0.30608223]
[1745508965252,0.27062752,601.47,599.25,0.30608223]
[1745508965651,0.27062752,601.46,599.26,0.30608223]
[1745508965953,0.27056648,601.45,599.27,0.30602034]
[1745508966252,0.27056648,601.44,599.28,0.30602034]
[1745508966553,0.27056648,601.43,599.29,0.30602034]
[1745508966745,0.27056648,601.42,599.3,0.30602034]
[1745508966945,0.27056648,601.41,599.25,0.30602034]
[1745508967152,0.27056648,601.4,599.26,0.30602034]
[1745508967352,0.28988284,601.48,599.24,0.28988284]
[1745508967549,0.27056195,601.47,599.25,0.30601574]
[1745508967748,0.27056195,601.46,599.25,0.30601574]
[1745508967950,0.27056195,601.45,599.24,0.28984179]
[1745508968150,0.27056195,601.45,599.25,0.30601574]
[1745508968849,0.28984179,601.46,599.26,0.642]
[1745508969056,0.27056506,601.45,599.27,0.30601886]
[1745508973458,0.28984179,601.46,599.26,0.642]
[1745508973652,0.27052494,601.45,599.27,0.30597821]
[1745508974458,0.27052494,601.45,599.27,0.86597821]
[1745508974656,0.27052494,601.45,599.28,0.30597821]
[1745508975053,0.27051543,601.44,599.29,0.30596843]
[1745508975254,0.27051543,601.45,599.28,0.30596843]
[1745508975454,0.27051543,601.44,599.29,0.30596843]
[1745508975655,0.27051543,601.45,599.28,0.30596843]
[1745508975852,0.27051543,601.44,599.29,0.30596843]
[1745508976061,0.27051543,601.45,599.29,0.30596843]
[1745508976256,0.27051543,601.45,599.28,0.30596843]
[1745508976553,0.27051543,601.45,599.29,0.30596843]
[1745508976958,0.27051543,601.44,599.3,0.30596843]
[1745508977157,0.28979835,601.44,599.28,0.30596843]
[1745508977458,0.27051543,601.43,599.36,1.05364295]
[1745508977752,0.27051543,601.42,599.37,0.30596843]
[1745508977956,0.27051543,601.43,599.38,0.30596843]
[1745508978156,0.27051543,601.42,599.39,0.30596843]
[1745508978356,0.27051543,601.43,599.4,0.30596843]
[1745508978559,0.27051543,601.42,599.41,0.30596843]
[1745508978752,0.27051543,601.43,599.42,0.30596843]
[1745508978957,0.27051543,601.42,599.43,0.30596843]
[1745508979152,0.27051543,601.43,599.37,0.30596843]
[1745508979358,0.27051543,601.42,599.38,0.30596843]
[1745508979556,0.28979835,601.44,599.36,1.05364295]
[1745508979855,0.27049674,601.43,599.37,0.30594937]
[1745508980059,0.28979835,601.41,599.5,1.05364295]
[1745508980259,0.27049674,601.4,599.51,0.30594937]
[1745508982658,0.27049439,601.39,599.52,0.30594696]
[1745508982855,1.27167545,601.52,599.51,0.30594696]
[1745508982856,0.27049439,601.51,599.51,0.30594696]
[1745508983754,0.27049439,601.5,599.52,0.30594696]
[1745508983958,0.27049439,601.74,599.41,0.30594696]
[1745508984161,0.27049439,601.73,599.42,0.30594696]
[1745508984359,0.27049439,601.72,599.41,0.30594696]
[1745508984560,0.27049439,601.74,599.42,0.30594696]
[1745508984757,0.27049439,601.73,599.41,0.30594696]
[1745508984959,0.27049439,601.74,599.42,0.30594696]
[1745508985160,0.27049439,601.73,599.41,0.30594696]
[1745508985361,0.27049439,601.72,599.42,0.30594696]
[1745508985562,1.27167545,601.75,599.4,1.05364295]
[1745508985860,0.27049743,601.74,599.41,0.30595005]
[1745508986261,0.27049743,601.73,599.42,0.30595005]
[1745508986561,0.27049743,601.72,599.43,0.30595005]
[1745508986761,0.27049743,601.94,599.37,0.30595005]
[1745508987062,0.27049743,601.93,599.38,0.30595005]
[1745508987260,0.27049743,601.92,599.37,0.30595005]
[1745508987558,0.27049743,601.91,599.38,0.30595005]
[1745508987765,0.27049743,601.9,599.37,0.30595005]
[1745508987962,0.27049743,601.89,599.38,0.30595005]
[1745508988263,0.27049743,601.88,599.39,0.30595005]
[1745508988562,0.27049743,601.87,599.4,0.30595005]
[1745508988762,0.27049743,601.86,599.41,0.30595005]
[1745508988963,0.27049743,601.85,599.42,0.30595005]
[1745508989158,0.27049743,601.85,599.36,0.596]
[1745508989159,0.27049743,601.84,599.43,0.30595005]
[1745508989364,0.27049743,601.83,599.44,0.30595005]
[1745508989564,0.27049743,601.82,599.45,0.30595005]
[1745508989765,0.27049743,601.81,599.46,0.30595005]
[1745508989962,0.28974406,601.9,599.36,0.596]
[1745508990168,0.27042074,601.89,599.37,0.30587198]
[1745508990462,0.28974406,601.9,599.36,0.596]
[1745508990463,0.27042074,601.88,599.38,0.30587198]
[1745508990662,0.27042074,601.87,599.39,0.30587198]
[1745508990867,0.27042074,601.87,599.36,0.596]
[1745508990868,0.27042074,601.86,599.4,0.30587198]
[1745508991066,0.27042074,601.85,599.41,0.30587198]
[1745508991265,0.27042074,601.84,599.42,0.30587198]
[1745508991462,0.28974406,601.9,599.36,0.596]
[1745508991666,0.27045896,601.89,599.37,0.30591084]
[1745508991867,0.27045896,601.88,599.38,0.30591084]
[1745508992068,0.27045896,601.87,599.37,0.30591084]
[1745508992261,1.27167545,601.78,599.57,1.05364295]
[1745508992669,0.27045896,601.77,599.58,0.30591084]
[1745508992870,0.27045896,601.76,599.58,0.30591084]
[1745508993171,0.27051047,601.75,599.59,0.30596314]
[1745508993369,0.27051047,601.77,599.58,0.30596314]
[1745508993568,0.27051047,601.76,599.59,0.30596314]
[1745508993765,0.27051047,601.77,599.6,0.30596314]
[1745508994064,0.27051047,601.76,599.61,0.30596314]
[1745508994266,0.27051047,601.77,599.58,0.30596314]
[1745508994564,1.27167545,601.78,599.59,0.30595012]
[1745508994766,0.27049749,601.77,599.58,0.30595012]
[1745508994967,0.27049749,601.88,599.59,0.30595012]
[1745508995165,0.27049749,601.87,599.48,0.30595012]
[1745508995365,0.27049749,601.86,599.49,0.30595012]
[1745508995671,0.27049749,601.85,599.5,0.30595012]
[1745508995870,0.27049749,601.84,599.51,0.30595012]
[1745508996171,0.27049749,601.83,599.48,0.30595012]
[1745508996366,0.27049749,601.82,599.49,0.30595012]
[1745508996666,0.27049749,601.81,599.51,0.595]
[1745508996867,0.27049749,601.8,599.51,0.595]
[1745508997072,0.27049749,601.79,599.52,0.30595012]
[1745508997274,0.27049749,601.78,599.52,0.30595012]
[1745508997475,0.27049749,601.88,599.52,0.30595012]
[1745508997670,0.27049749,601.87,599.52,0.30595012]
[1745508997875,0.27049749,601.86,599.52,0.30595012]
[1745508998071,0.27049749,601.85,599.52,1.04495012]
[1745508998272,0.27049749,601.84,599.53,0.30595012]
[1745508998573,0.27049749,601.83,599.53,0.30595012]
[1745508998773,0.27049749,601.82,599.53,0.30595012]
[1745508998972,0.27049749,601.81,599.53,0.30595012]
[1745508999173,0.27049749,601.88,599.53,0.30595012]
[1745508999375,0.27049749,601.87,599.53,0.30595012]
[1745508999575,0.27049749,601.86,599.53,0.30595012]
[1745508999775,0.27049749,601.85,599.53,0.30595012]
[1745509000075,0.27049749,601.84,599.53,0.30595012]
[1745509000275,0.27049749,601.83,599.53,0.30595012]
[1745509000476,0.27049749,601.82,599.53,0.30595012]
[1745509000774,0.27048381,601.81,599.54,0.30593615]
[1745509000977,0.27048381,601.8,599.53,0.30593615]
[1745509001176,0.27048381,601.79,599.54,0.30593615]
[1745509001374,0.27048381,601.78,599.53,0.30593615]
[1745509001575,0.27048381,601.78,599.54,0.30593615]
[1745509001776,1.54215926,601.77,599.53,0.30593615]
[1745509001976,0.27048381,601.76,599.54,0.30593615]
[1745509002277,0.27048272,601.75,599.55,0.305935]
[1745509002470,0.27048272,601.74,599.53,0.305935]
[1745509002673,0.27048272,601.73,599.54,0.305935]
[1745509002872,0.27048272,601.72,599.53,0.305935]
[1745509003078,0.27048272,601.71,599.54,0.305935]
[1745509003272,0.27048272,601.7,599.53,0.305935]
[1745509003477,0.27048272,601.69,599.54,0.305935]
[1745509003677,0.27046265,601.68,599.55,0.30591456]
[1745509003878,0.27046265,601.67,599.56,0.30591456]
[1745509004176,0.27046265,601.66,599.57,0.30591456]
[1745509004376,0.27046265,601.65,599.53,0.30591456]
[1745509004574,0.27046265,601.64,599.53,0.30591456]
[1745509004775,0.27046265,601.63,599.53,0.30591456]
[1745509004974,0.27046265,601.62,599.53,0.30591456]
[1745509005178,0.27046265,601.62,599.52,0.739]
[1745509005179,0.28976819,601.75,599.52,0.739]
[1745509005376,0.2704627,601.74,599.53,0.30591463]
[1745509005574,0.2704627,601.73,599.53,0.30591463]
[1745509005777,0.2704627,601.72,599.53,0.30591463]
[1745509006079,0.2704627,601.71,599.53,0.30591463]
[1745509006280,0.28976819,601.75,599.56,1.05364295]
[1745509006281,1.27167545,601.69,599.56,1.05364295]
[1745509006481,0.2704627,601.68,599.57,0.30591463]
[1745509006681,0.2704627,601.67,599.57,0.30591463]
[1745509006883,0.2704627,601.66,599.57,0.30591463]
[1745509007078,0.2704627,601.65,599.57,0.30591463]
[1745509007276,0.2704627,601.64,599.57,0.30591463]
[1745509007475,0.2704627,601.63,599.57,0.30591463]
[1745509007680,0.2704627,601.62,599.57,0.30591463]
[1745509007881,0.2704627,601.68,599.57,0.30591463]
[1745509008081,0.2704627,601.67,599.57,0.30591463]
[1745509008383,0.2704627,601.66,599.57,0.30591463]
[1745509008578,0.2704627,601.68,599.57,0.30591463]
[1745509008883,0.28976819,601.75,599.57,0.30591463]
[1745509008884,0.2704627,601.67,599.57,0.30591463]
[1745509009084,0.2704627,601.66,599.58,0.30591463]
[1745509009379,0.2704627,601.65,599.59,0.30591463]
[1745509009582,0.2704627,601.74,599.53,0.30591463]
[1745509009780,0.2704627,601.64,599.6,0.30591463]
[1745509010083,0.2704627,601.63,599.61,0.30591463]
[1745509010283,0.2704627,601.62,599.53,0.30591463]
[1745509010483,0.2704627,601.74,599.54,0.30591463]
[1745509010685,0.2704627,601.73,599.53,0.30591463]
[1745509010985,0.28976819,601.75,599.54,0.30591463]
[1745509010986,0.2704627,601.72,599.54,0.30591463]
[1745509011180,0.2704627,601.71,599.53,0.30591463]
[1745509011385,0.2704627,601.7,599.54,0.30591463]
[1745509011580,0.2704627,601.69,599.53,0.30591463]
[1745509011785,0.2704627,601.68,599.54,0.30591463]
[1745509011979,0.2704627,601.67,599.53,0.30591463]
[1745509012185,0.2704627,601.66,599.54,0.30591463]
[1745509012382,0.2704627,601.65,599.55,0.30591463]
[1745509012585,0.2704627,601.64,599.56,0.30591463]
[1745509012786,0.2897525,601.65,599.53,0.30591463]
[1745509012980,0.2704627,601.64,599.54,0.30591463]
[1745509013181,0.2704627,601.64,599.53,0.30591463]
[1745509013381,0.2704627,601.64,599.54,0.30591463]
[1745509013587,0.2704627,601.64,599.53,0.30591463]
[1745509013787,0.2704627,601.64,599.54,0.30591463]
[1745509013987,0.2704627,601.64,599.56,1.05364295]
[1745509014180,0.2704627,601.64,599.57,0.30591463]
[1745509014386,0.2897525,601.65,599.56,1.05364295]
[1745509014584,0.27045502,601.64,599.57,0.30590688]
[1745509015889,0.2897525,601.65,599.56,1.05364295]
[1745509016191,0.27045477,601.64,599.57,0.30590661]
[1745509016584,0.27045477,601.63,599.58,1.05364295]
[1745509016784,0.27045477,601.62,599.59,0.30590661]
[1745509016988,0.27045477,601.61,599.59,0.30590661]
[1745509017189,0.27045477,601.6,599.59,0.30590661]
[1745509017389,0.27045477,601.64,599.59,0.30590661]
[1745509018992,0.2897525,601.65,599.58,1.05364295]
[1745509019191,0.2704264,601.64,599.62,1.05364295]
[1745509019491,0.2704264,601.64,599.63,0.30587774]
[1745509019692,0.2897525,601.65,599.63,0.30587774]
[1745509019693,0.2704264,601.63,599.63,0.30587774]
[1745509019886,0.2704264,601.64,599.63,0.30587774]
[1745509020090,0.2704264,601.63,599.63,0.30587774]
[1745509020290,0.2704264,601.64,599.63,0.30587774]
[1745509020587,0.2704327,601.63,599.64,0.30588416]
[1745509020789,0.2704327,601.64,599.63,0.30588416]
[1745509021091,0.2704327,601.63,599.64,0.30588416]
[1745509021288,0.2704327,601.64,599.63,0.30588416]
[1745509021692,0.2704327,601.64,599.66,1.05364295]
[1745509021893,0.2704327,601.64,599.67,0.30588416]
[1745509023192,0.2897525,601.65,599.66,1.05364295]
[1745509023396,0.27044635,601.64,599.67,0.30589818]
[1745509024794,0.27044635,601.64,599.68,0.30589818]
[1745509025096,0.27044635,601.64,599.69,0.30589818]
[1745509025292,0.27044635,601.64,599.56,0.30589818]
[1745509025895,0.27044635,601.64,599.56,1.05589818]
[1745509026090,0.27044635,601.64,599.57,0.30589818]
[1745509026997,0.27044635,601.64,599.57,1.35954113]
[1745509027189,0.27044635,601.64,599.58,0.30589818]
[1745509027691,0.27044635,601.64,599.59,0.571]
[1745509027896,0.27044384,601.63,599.6,0.30589538]
[1745509028091,0.27044384,601.64,599.6,0.30589538]
[1745509028298,0.27044384,601.63,599.6,0.30589538]
[1745509028496,0.27044384,601.64,599.6,0.30589538]
[1745509029900,0.27044384,601.64,599.61,1.05364295]
[1745509030097,0.27044384,601.63,599.62,0.30589538]
[1745509030291,0.27044384,601.62,599.62,0.30589538]
[1745509030492,0.27044384,601.64,599.62,0.30589538]
[1745509030697,0.27044384,601.63,599.62,0.30589538]
[1745509030997,0.27044384,601.62,599.62,0.30589538]
[1745509031195,0.27044384,601.64,599.62,0.30589538]
[1745509031397,0.27044384,601.63,599.62,0.30589538]
[1745509031598,0.27044384,601.64,599.62,0.30589538]
[1745509031791,0.2897525,601.65,599.62,0.30589538]
[1745509031792,0.27044384,601.63,599.62,0.30589538]
[1745509032000,0.27044384,601.64,599.62,0.30589538]
[1745509032193,0.27044384,601.63,599.62,0.30589538]
[1745509032391,0.27044384,601.64,599.62,0.30589538]
[1745509032597,0.2897525,601.65,599.67,1.05364295]
[1745509032598,0.27042488,601.63,599.67,1.05364295]
[1745509032793,0.27042488,601.62,599.68,0.30587619]
[1745509032997,1.56142795,601.65,599.67,1.05364295]
[1745509033298,0.27041306,601.64,599.68,0.30586425]
[1745509035294,0.27041306,601.64,599.72,1.05364295]
[1745509035491,0.27041306,601.64,599.73,0.30586425]
[1745509035694,0.2897525,601.65,599.72,1.05364295]
[1745509035892,0.27039633,601.64,599.74,0.30584707]
[1745509036096,0.27039633,601.64,599.75,0.30584707]
[1745509036398,0.27039633,601.64,599.76,0.30584707]
[1745509036598,0.27039633,601.64,599.77,0.30584707]
[1745509036798,0.27039633,601.64,599.73,0.30584707]
[1745509037095,0.27039633,601.64,599.74,0.30584707]
[1745509037299,0.2897525,601.65,599.72,1.05364295]
[1745509037501,0.27039471,601.64,599.73,0.30584537]
[1745509038002,0.27039471,601.64,599.76,1.05364295]
[1745509038200,0.27039471,601.64,599.77,0.30584537]
[1745509038800,0.2897525,601.65,599.76,1.05364295]
[1745509038999,0.27039588,601.64,599.77,0.30584652]
[1745509039999,0.27039588,601.72,599.77,0.30584652]
[1745509040197,0.28970064,601.63,599.77,0.30584652]
[1745509040393,1.27167545,601.73,599.76,1.05364295]
[1745509040600,0.2703961,601.72,599.77,0.30584678]
[1745509041300,0.2703961,601.84,599.7,0.30584678]
[1745509041492,0.2703961,601.83,599.7,0.30584678]